fUSD/lending_fUSD_20240201
["ID","MTS","AMOUNT","RATE_DAILY","PERIOD"]
[313124642,1706778398488,249.23,0.00020154,2]
[313124643,1706778398996,249.23,0.00022418,2]
[313124644,1706778399755,232.14600768,0.00022,2]
[313124645,1706778445668,765.08,0.00022066,2]
[313124646,1706778464595,500.0,0.00022008,2]
[313124647,1706778553769,200.0,0.00022066,2]
[313124654,1706778603377,183.28,0.00022066,2]
[313124655,1706778615693,163.74,0.00022115,2]
[313124662,1706778631678,-292.94029215,0.00022521,2]
[313124663,1706778631689,-496.77130862,0.00022522,2]
[313124664,1706778631698,-155.0,0.00022523,2]
[313124665,1706778631707,-338.11095919,0.00022524,2]
[313124666,1706778631716,-338.11095919,0.00022524,2]
[313124667,1706778631725,-338.11095919,0.00022524,2]
[313124668,1706778631735,-338.11095919,0.00022524,2]
[313124669,1706778631745,-338.11095919,0.00022524,2]
[313124671,1706778631755,-338.11095919,0.00022524,2]
[313124672,1706778631763,-165.52037904,0.00022534,2]
[313124673,1706778631774,-150.0,0.00022633,2]
[313124674,1706778631784,-155.76170738,0.00022638,2]
[313124675,1706778631794,-4989.33968138,0.00022735,2]
[313124676,1706778631873,-546.06149217,0.00022735,2]
[313124677,1706778631884,-431.18512968,0.00022735,2]
[313124678,1706778631896,-879.76098058,0.00022735,2]
[313124679,1706778631907,-559.71247832,0.00022735,2]
[313124680,1706778631924,-341.78195328,0.00022735,2]
[313124681,1706778631935,-832.48880502,0.00022735,2]
[313124682,1706778631946,-5284.59673525,0.00022735,2]
[313124683,1706778631958,-270.98804803,0.00022735,2]
[313124684,1706778631969,-1126.09699632,0.00022735,2]
[313124685,1706778632100,-299.99,0.00022735,2]
[313124686,1706778632112,-679.56013266,0.00022735,2]
[313124687,1706778632125,-26881.29379142,0.00022735,2]
[313124688,1706778632135,-47069.16211975,0.00022736,2]
[313124689,1706778632144,-382.85270261,0.00022737,2]
[313124690,1706778632153,-803.32188729,0.00022737,2]
[313124691,1706778632162,-530.29135812,0.00022737,2]
[313124692,1706778632170,-2687.30496552,0.00022738,2]
[313124693,1706778632179,-8481.67558246,0.0002274,2]
[313124694,1706778632188,-600.0,0.000228,8]
[313124695,1706778632197,-187.25197847,0.000229,2]
[313124696,1706778632205,-1165.71011552,0.000229,2]
[313124697,1706778632214,-155.36731009,0.000229,2]
[313124698,1706778632223,-1200.0,0.000229,8]
[313124699,1706778632232,-216.1374704,0.0002294,2]
[313124700,1706778632244,-154.30799328,0.0002294,2]
[313124701,1706778632254,-805.2826647,0.0002294,2]
[313124702,1706778632265,-768.8565787,0.00022967,2]
[313124703,1706778632273,-2016.20080627,0.0002297,2]
[313124704,1706778632282,-9444.6888029,0.00022971,2]
[313124705,1706778637719,-19567.89012027,0.00022971,2]
[313124706,1706778637729,-215.63475234,0.00022976,2]
[313124707,1706778637739,-181.71064084,0.0002299,2]
[313124708,1706778637751,-162.83781801,0.00022996,2]
[313124709,1706778637761,-983.86170055,0.00022997,2]
[313124710,1706778637776,-829.81914014,0.00022997,2]
[313124711,1706778637786,-1013.26547405,0.00022997,2]
[313124712,1706778637796,-250.63372975,0.00022998,2]
[313124713,1706778637805,-304.73710127,0.00022998,2]
[313124714,1706778637815,-1439.13827967,0.00022998,2]
[313124715,1706778637825,-708.17244537,0.00022998,2]
[313124716,1706778637835,-1456.97375323,0.00022998,2]
[313124717,1706778637845,-2180.72664687,0.00022998,2]
[313124718,1706778637854,-26114.11780911,0.00022998,2]
[313124719,1706778637866,-7712.14604147,0.00022998,2]
[313124720,1706778637876,-155.0,0.00022998,2]
[313124721,1706778637886,-29174.13673913,0.00022998,2]
[313124722,1706778637897,-1145.50387031,0.00022998,2]
[313124723,1706778637906,-178.57868833,0.00022999,2]
[313124724,1706778637919,-221.04851006,0.00022999,2]
[313124725,1706778637928,-192.65741443,0.00022999,2]
[313124726,1706778637937,-354.87715265,0.00022999,2]
[313124727,1706778637947,-704.85953999,0.00022999,2]
[313124728,1706778637956,-155.50098616,0.00022999,2]
[313124729,1706778637965,-164.96152334,0.00022999,2]
[313124730,1706778637974,-2156.00757728,0.00022999,2]
[313124731,1706778637984,-244.5905475,0.00022999,2]
[313124732,1706778637993,-475.28170512,0.00022999,2]
[313124733,1706778638004,-18511.77345534,0.00022999,2]
[313124734,1706778638016,-2461.16702176,0.00022999,2]
[313124735,1706778638028,-3422.03918691,0.00022999,2]
[313124736,1706778638037,-205.75527007,0.00022999,2]
[313124737,1706778638046,-257.0325133,0.00022999,2]
[313124738,1706778638055,-946.60101861,0.00022999,2]
[313124739,1706778638064,-1000.0,0.00022999,2]
[313124740,1706778638073,-405.57557684,0.00023,2]
[313124741,1706778638099,-464.49160553,0.00023,2]
[313124742,1706778638110,-543330.99288867,0.00023,2]
[313124743,1706778638119,-673530.64292416,0.00023,2]
[313124744,1706778638129,-170.78,0.0002304,2]
[313124745,1706778638138,-155.76170727,0.00023073,2]
[313124746,1706778638148,-155.76170727,0.00023508,2]
[313124747,1706778638157,-155.76170727,0.00023943,2]
[313124748,1706778638166,-2531.195,0.00023999,2]
[313124749,1706778638175,-166.64,0.00024068,2]
[313124750,1706778638184,-171.58,0.00024228,2]
[313124751,1706778638194,-155.76170727,0.00024378,2]
[313124752,1706778638203,-381.76,0.00024384,2]
[313124753,1706778638212,-154.30799327,0.00024409,2]
[313124754,1706778638222,-170.78,0.00024576,2]
[313124756,1706778638231,-250.0,0.00024658,2]
[313124758,1706778638241,-249.23,0.00024682,2]
[313124760,1706778638253,-155.76170727,0.00024813,2]
[313124762,1706778638262,-1165.71011545,0.00024883,2]
[313124764,1706778638271,-155.76170727,0.00025248,2]
[313124765,1706778638282,-1000.0,0.00025516,2]
[313124766,1706778638292,-155.76170727,0.00025683,2]
[313124767,1706778638301,-166.64,0.00025712,2]
[313124768,1706778638310,-154.30799327,0.00025878,2]
[313124769,1706778638319,-150.0,0.00026079,2]
[313124770,1706778638331,-170.78,0.00026112,2]
[313124771,1706778638340,-155.76170727,0.00026118,2]
[313124772,1706778638350,-3291.91856165,0.000264,2]
[313124773,1706778638359,-216.13747036,0.0002643,2]
[313124774,1706778638370,-155.76170727,0.00026553,2]
[313124775,1706778638379,-1165.71011545,0.00026866,3]
[313124776,1706778638388,-249.23,0.00026946,2]
[313124777,1706778638397,-155.76170727,0.00026988,2]
[313124778,1706778638408,-207.0,0.00027045,2]
[313124779,1706778638418,-470.87,0.00027271,2]
[313124780,1706778638427,-154.30799327,0.00027347,2]
[313124781,1706778638436,-166.64,0.00027355,2]
[313124782,1706778638445,-500.0,0.00027397,2]
[313124783,1706778638454,-500.0,0.00027397,2]
[313124784,1706778638463,-507.16,0.00027397,2]
[313124785,1706778638473,-500.0,0.00027397,2]
[313124786,1706778638482,-571.02,0.00027397,7]
[313124787,1706778638491,-500.0,0.00027397,2]
[313124788,1706778638502,-500.0,0.00027397,2]
[313124789,1706778638511,-500.0,0.00027397,2]
[313124790,1706778638520,-305.76026729,0.00027397,2]
[313124791,1706778638529,-500.0,0.00027397,2]
[313124792,1706778638539,-500.0,0.00027397,2]
[313124793,1706778638548,-500.0,0.00027397,2]
[313124794,1706778638557,-500.0,0.00027397,2]
[313124795,1706778638566,-500.0,0.00027397,2]
[313124796,1706778638575,-500.0,0.00027397,2]
[313124797,1706778638584,-341.47,0.00027397,2]
[313124798,1706778638600,-500.0,0.00027397,2]
[313124799,1706778638614,-500.0,0.00027397,2]
[313124800,1706778638627,-500.0,0.00027397,2]
[313124801,1706778638636,-500.0,0.00027397,2]
[313124802,1706778638646,-500.0,0.00027397,2]
[313124803,1706778638656,-727.73,0.00027397,2]
[313124804,1706778638666,-2784.64,0.00027397,2]
[313124805,1706778638676,-500.0,0.00027397,2]
[313124806,1706778638685,-155.0,0.00027397,2]
[313124807,1706778638696,-500.0,0.00027397,2]
[313124808,1706778638706,-500.0,0.00027397,2]
[313124809,1706778638715,-500.0,0.00027397,2]
[313124810,1706778638724,-500.0,0.00027397,2]
[313124811,1706778638734,-500.0,0.00027397,2]
[313124812,1706778638744,-860.78,0.00027397,2]
[313124813,1706778638755,-500.0,0.00027397,2]
[313124814,1706778638765,-562.44,0.00027397,2]
[313124815,1706778638776,-500.0,0.00027397,2]
[313124816,1706778638787,-281.54661491,0.00027397,2]
[313124817,1706778638797,-500.0,0.00027397,2]
[313124818,1706778638806,-500.0,0.00027397,2]
[313124819,1706778638816,-500.0,0.00027397,2]
[313124820,1706778638826,-500.0,0.00027397,2]
[313124821,1706778638836,-1719.87,0.00027397,2]
[313124822,1706778638846,-659.48,0.00027397,2]
[313124823,1706778638856,-500.0,0.00027397,2]
[313124824,1706778638867,-500.0,0.00027397,2]
[313124825,1706778638877,-613.6091889,0.00027397,2]
[313124826,1706778638887,-500.0,0.00027397,2]
[313124827,1706778639123,-500.0,0.00027397,2]
[313124828,1706778639134,-500.0,0.00027397,2]
[313124829,1706778639142,-748.96,0.00027397,2]
[313124830,1706778639151,-1740.65,0.00027397,2]
[313124831,1706778639160,-500.0,0.00027397,2]
[313124832,1706778639169,-500.0,0.00027397,2]
[313124833,1706778639178,-500.0,0.00027397,2]
[313124834,1706778639187,-500.0,0.00027397,2]
[313124835,1706778639197,-500.0,0.00027397,2]
[313124836,1706778639206,-500.0,0.00027397,2]
[313124837,1706778639216,-500.0,0.00027397,2]
[313124838,1706778639225,-500.0,0.00027397,2]
[313124839,1706778639235,-500.0,0.00027397,2]
[313124840,1706778639245,-500.0,0.00027397,2]
[313124841,1706778639257,-500.0,0.00027397,2]
[313124842,1706778639266,-965.96,0.00027397,2]
[313124843,1706778639275,-595.36,0.00027397,2]
[313124844,1706778639284,-562.27,0.00027397,2]
[313124845,1706778639294,-500.0,0.00027397,2]
[313124846,1706778639303,-752.71,0.00027397,2]
[313124847,1706778639312,-500.0,0.00027397,2]
[313124848,1706778639321,-500.0,0.00027397,2]
[313124849,1706778639332,-1110.9,0.00027397,2]
[313124850,1706778639341,-500.0,0.00027397,2]
[313124851,1706778639350,-500.0,0.00027397,2]
[313124852,1706778639360,-500.0,0.00027397,2]
[313124853,1706778639373,-701.69,0.00027397,2]
[313124854,1706778639382,-500.0,0.00027397,2]
[313124855,1706778639392,-500.0,0.00027397,2]
[313124856,1706778639402,-500.0,0.00027397,2]
[313124857,1706778639411,-500.0,0.00027397,2]
[313124858,1706778639421,-789.27,0.00027397,2]
[313124859,1706778639431,-500.0,0.00027397,2]
[313124860,1706778639440,-500.0,0.00027397,2]
[313124861,1706778639449,-948.54,0.00027397,2]
[313124862,1706778639459,-1122.8,0.00027397,2]
[313124863,1706778639468,-505.98,0.00027397,2]
[313124864,1706778639479,-500.0,0.00027397,2]
[313124865,1706778639489,-500.0,0.00027397,2]
[313124866,1706778639500,-500.0,0.00027397,2]
[313124867,1706778639511,-500.0,0.00027397,2]
[313124868,1706778639521,-500.0,0.00027397,2]
[313124869,1706778639530,-705.17,0.00027397,2]
[313124870,1706778639540,-500.0,0.00027397,2]
[313124871,1706778639550,-1466.89,0.00027397,2]
[313124872,1706778639559,-500.0,0.00027397,2]
[313124873,1706778639570,-500.0,0.00027397,2]
[313124874,1706778639579,-500.0,0.00027397,2]
[313124875,1706778639589,-500.0,0.00027397,2]
[313124876,1706778639598,-500.0,0.00027397,2]
[313124877,1706778639607,-500.0,0.00027397,2]
[313124878,1706778639617,-500.0,0.00027397,2]
[313124879,1706778639627,-500.0,0.00027397,2]
[313124880,1706778639636,-1066.44,0.00027397,2]
[313124881,1706778639645,-500.0,0.00027397,2]
[313124882,1706778639655,-842.3,0.00027397,2]
[313124883,1706778639664,-500.0,0.00027397,2]
[313124884,1706778639674,-500.0,0.00027397,2]
[313124885,1706778639684,-500.0,0.00027397,2]
[313124886,1706778639693,-500.0,0.00027397,2]
[313124887,1706778639703,-500.0,0.00027397,2]
[313124888,1706778639712,-500.0,0.00027397,2]
[313124889,1706778639721,-500.0,0.00027397,2]
[313124890,1706778639730,-500.0,0.00027397,2]
[313124891,1706778639740,-500.0,0.00027397,2]
[313124892,1706778639749,-548.67,0.00027397,2]
[313124893,1706778639758,-500.0,0.00027397,2]
[313124894,1706778639768,-500.0,0.00027397,2]
[313124895,1706778639778,-500.0,0.00027397,2]
[313124896,1706778639788,-500.0,0.00027397,2]
[313124897,1706778639797,-500.0,0.00027397,2]
[313124898,1706778639806,-9967.14,0.00027397,2]
[313124899,1706778639816,-786.41,0.00027397,5]
[313124900,1706778639827,-520.95,0.00027397,2]
[313124901,1706778639836,-500.0,0.00027397,2]
[313124902,1706778639844,-518.92,0.00027397,2]
[313124903,1706778639854,-847.38,0.00027397,2]
[313124904,1706778639863,-1586.17,0.00027397,2]
[313124905,1706778639873,-1428.6,0.00027397,5]
[313124906,1706778639884,-2377.68,0.00027397,2]
[313124907,1706778639894,-1848.73,0.00027397,2]
[313124908,1706778639905,-781.3,0.00027397,2]
[313124909,1706778639915,-954.76,0.00027397,2]
[313124910,1706778639926,-500.0,0.00027397,2]
[313124911,1706778639935,-500.0,0.00027397,2]
[313124912,1706778639944,-529.85,0.00027397,2]
[313124913,1706778639953,-714.71,0.00027397,2]
[313124914,1706778639962,-500.0,0.00027397,2]
[313124915,1706778639971,-979.26,0.00027397,2]
[313124916,1706778639980,-1530.57,0.00027397,2]
[313124917,1706778639989,-518.12,0.00027397,2]
[313124918,1706778639999,-914.52,0.00027397,2]
[313124919,1706778640009,-500.0,0.00027397,2]
[313124920,1706778640018,-500.0,0.00027397,2]
[313124921,1706778640027,-500.0,0.00027397,2]
[313124922,1706778640036,-500.0,0.00027397,2]
[313124923,1706778640046,-712.69,0.00027397,2]
[313124924,1706778640055,-500.0,0.00027397,2]
[313124925,1706778640064,-1000.0,0.000274,2]
[313124926,1706778640074,-155.76170727,0.00027423,2]
[313124927,1706778640083,-186.18995355,0.000275,2]
[313124928,1706778640093,-2628.0,0.000276,2]
[313124929,1706778640102,-4536.0,0.000276,2]
[313124930,1706778640112,-170.78,0.00027648,2]
[313124931,1706778640122,-529.06403222,0.00027845,2]
[313124932,1706778640133,-155.76170727,0.00027858,2]
[313124933,1706778640142,-1800.0,0.000279,10]
[313124934,1706778640152,-500.0,0.00027945,2]
[313124935,1706778640161,-500.0,0.00027945,2]
[313124936,1706778640171,-507.16,0.00027945,2]
[313124937,1706778640180,-500.0,0.00027945,2]
[313124938,1706778640189,-571.02,0.00027945,7]
[313124939,1706778640199,-500.0,0.00027945,2]
[313124940,1706778640208,-500.0,0.00027945,2]
[313124941,1706778640218,-500.0,0.00027945,2]
[313124942,1706778640227,-500.0,0.00027945,2]
[313124943,1706778640237,-500.0,0.00027945,2]
[313124944,1706778640247,-500.0,0.00027945,2]
[313124945,1706778640257,-500.0,0.00027945,2]
[313124946,1706778640266,-727.73,0.00027945,2]
[313124947,1706778640275,-2784.64,0.00027945,2]
[313124948,1706778640284,-500.0,0.00027945,2]
[313124949,1706778640294,-500.0,0.00027945,2]
[313124950,1706778640303,-500.0,0.00027945,2]
[313124951,1706778640313,-500.0,0.00027945,2]
[313124952,1706778640323,-500.0,0.00027945,2]
[313124953,1706778640333,-860.78,0.00027945,2]
[313124954,1706778640343,-500.0,0.00027945,2]
[313124955,1706778640353,-562.44,0.00027945,2]
[313124956,1706778640362,-500.0,0.00027945,2]
[313124957,1706778640372,-232.3404297,0.00027945,2]
[313124958,1706778640382,-500.0,0.00027945,2]
[313124959,1706778640391,-500.0,0.00027945,2]
[313124960,1706778640401,-526.99910483,0.00027945,2]
[313124961,1706778640411,-1719.87,0.00027945,2]
[313124962,1706778640420,-659.48,0.00027945,2]
[313124963,1706778640430,-500.0,0.00027945,2]
[313124964,1706778640440,-500.0,0.00027945,2]
[313124965,1706778640449,-500.0,0.00027945,2]
[313124966,1706778640459,-500.0,0.00027945,2]
[313124967,1706778640468,-500.0,0.00027945,2]
[313124968,1706778640478,-748.96,0.00027945,2]
[313124969,1706778640487,-1740.65,0.00027945,2]
[313124970,1706778640498,-500.0,0.00027945,2]
[313124971,1706778640507,-500.0,0.00027945,2]
[313124972,1706778640516,-500.0,0.00027945,2]
[313124973,1706778640526,-500.0,0.00027945,2]
[313124974,1706778640535,-500.0,0.00027945,2]
[313124975,1706778640544,-500.0,0.00027945,2]
[313124976,1706778640554,-606.90103443,0.00027945,2]
[313124977,1706778640564,-500.0,0.00027945,2]
[313124978,1706778640573,-500.0,0.00027945,2]
[313124979,1706778640583,-629.14097296,0.00027945,2]
[313124980,1706778640592,-965.96,0.00027945,2]
[313124981,1706778640602,-595.36,0.00027945,2]
[313124982,1706778640611,-562.27,0.00027945,2]
[313124983,1706778640621,-500.0,0.00027945,2]
[313124984,1706778640631,-752.71,0.00027945,2]
[313124985,1706778640641,-500.0,0.00027945,2]
[313124986,1706778640651,-500.0,0.00027945,2]
[313124987,1706778640660,-1110.9,0.00027945,2]
[313124988,1706778640670,-500.0,0.00027945,2]
[313124989,1706778640680,-500.0,0.00027945,2]
[313124990,1706778640689,-500.0,0.00027945,2]
[313124991,1706778640699,-701.69,0.00027945,2]
[313124992,1706778640709,-500.0,0.00027945,2]
[313124993,1706778640718,-500.0,0.00027945,2]
[313124994,1706778640728,-500.0,0.00027945,2]
[313124995,1706778640738,-789.27,0.00027945,2]
[313124996,1706778640750,-500.0,0.00027945,2]
[313124997,1706778640759,-500.0,0.00027945,2]
[313124998,1706778640767,-948.54,0.00027945,2]
[313124999,1706778640778,-1122.8,0.00027945,2]
[313125000,1706778640787,-505.98,0.00027945,2]
[313125001,1706778640797,-500.0,0.00027945,2]
[313125002,1706778640807,-500.0,0.00027945,2]
[313125003,1706778640816,-500.0,0.00027945,2]
[313125004,1706778640825,-500.0,0.00027945,2]
[313125005,1706778640834,-500.0,0.00027945,2]
[313125006,1706778640843,-705.17,0.00027945,2]
[313125007,1706778640853,-500.0,0.00027945,2]
[313125008,1706778640864,-1466.89,0.00027945,2]
[313125009,1706778640873,-500.0,0.00027945,2]
[313125010,1706778640882,-500.0,0.00027945,2]
[313125011,1706778640891,-500.0,0.00027945,2]
[313125012,1706778640901,-500.0,0.00027945,2]
[313125013,1706778640909,-500.0,0.00027945,2]
[313125014,1706778640918,-500.0,0.00027945,2]
[313125015,1706778640927,-500.0,0.00027945,2]
[313125016,1706778640937,-500.0,0.00027945,2]
[313125017,1706778640946,-1066.44,0.00027945,2]
[313125018,1706778640955,-500.0,0.00027945,2]
[313125019,1706778640965,-842.3,0.00027945,2]
[313125020,1706778640974,-500.0,0.00027945,2]
[313125021,1706778640983,-500.0,0.00027945,2]
[313125022,1706778640993,-500.0,0.00027945,2]
[313125023,1706778641004,-500.0,0.00027945,2]
[313125024,1706778641013,-500.0,0.00027945,2]
[313125025,1706778641023,-500.0,0.00027945,2]
[313125026,1706778641032,-500.0,0.00027945,2]
[313125027,1706778641041,-500.0,0.00027945,2]
[313125028,1706778641051,-500.0,0.00027945,2]
[313125029,1706778641060,-548.67,0.00027945,2]
[313125030,1706778641070,-500.0,0.00027945,2]
[313125031,1706778641078,-500.0,0.00027945,2]
[313125032,1706778641088,-500.0,0.00027945,2]
[313125033,1706778641097,-500.0,0.00027945,2]
[313125034,1706778641106,-500.0,0.00027945,2]
[313125035,1706778641116,-9967.14,0.00027945,2]
[313125036,1706778641126,-786.41,0.00027945,5]
[313125037,1706778641135,-520.95,0.00027945,2]
[313125038,1706778641144,-500.0,0.00027945,2]
[313125039,1706778641154,-518.92,0.00027945,2]
[313125040,1706778641163,-847.38,0.00027945,2]
[313125041,1706778641173,-1428.6,0.00027945,5]
[313125042,1706778641181,-1586.17,0.00027945,2]
[313125043,1706778641190,-2377.68,0.00027945,2]
[313125044,1706778641200,-1848.73,0.00027945,2]
[313125045,1706778641209,-954.76,0.00027945,2]
[313125046,1706778641218,-781.3,0.00027945,2]
[313125047,1706778641227,-500.0,0.00027945,2]
[313125048,1706778641236,-500.0,0.00027945,2]
[313125049,1706778641249,-529.85,0.00027945,2]
[313125050,1706778641258,-714.71,0.00027945,2]
[313125051,1706778641267,-500.0,0.00027945,2]
[313125052,1706778641276,-979.26,0.00027945,2]
[313125053,1706778641287,-1530.57,0.00027945,2]
[313125054,1706778641296,-518.12,0.00027945,2]
[313125055,1706778641305,-914.52,0.00027945,2]
[313125056,1706778641315,-500.0,0.00027945,2]
[313125057,1706778641324,-500.0,0.00027945,2]
[313125058,1706778641334,-500.0,0.00027945,2]
[313125059,1706778641344,-500.0,0.00027945,2]
[313125060,1706778641353,-712.69,0.00027945,2]
[313125061,1706778641362,-290.40617084,0.00028,2]
[313125062,1706778641371,-155.76170727,0.00028293,2]
[313125063,1706778641380,-224.38371534,0.00028293,2]
[313125064,1706778641390,-556.82590809,0.00028393,2]
[313125065,1706778641399,-500.0,0.00028493,2]
[313125066,1706778641408,-500.0,0.00028493,2]
[313125067,1706778641417,-507.16,0.00028493,2]
[313125068,1706778641426,-500.0,0.00028493,2]
[313125069,1706778641435,-571.02,0.00028493,7]
[313125070,1706778641444,-621.5204404,0.00028493,2]
[313125071,1706778641453,-500.0,0.00028493,2]
[313125072,1706778641507,-500.0,0.00028493,2]
[313125073,1706778641516,-500.0,0.00028493,2]
[313125074,1706778641525,-500.0,0.00028493,2]
[313125075,1706778641534,-627.91387089,0.00028493,2]
[313125076,1706778641543,-500.0,0.00028493,2]
[313125077,1706778641552,-727.73,0.00028493,2]
[313125078,1706778641561,-2784.64,0.00028493,2]
[313125079,1706778641570,-500.0,0.00028493,2]
[313125080,1706778641579,-500.0,0.00028493,2]
[313125081,1706778641589,-236.02061299,0.00028493,2]
[313125082,1706778641598,-500.0,0.00028493,2]
[313125083,1706778641607,-500.0,0.00028493,2]
[313125084,1706778641616,-860.78,0.00028493,2]
[313125085,1706778641625,-500.0,0.00028493,2]
[313125086,1706778641635,-562.44,0.00028493,2]
[313125087,1706778641644,-500.0,0.00028493,2]
[313125088,1706778641652,-500.0,0.00028493,2]
[313125089,1706778641662,-500.0,0.00028493,2]
[313125090,1706778641671,-1719.87,0.00028493,2]
[313125091,1706778641680,-659.48,0.00028493,2]
[313125092,1706778641690,-500.0,0.00028493,2]
[313125093,1706778641699,-380.60763317,0.00028493,2]
[313125094,1706778641709,-500.0,0.00028493,2]
[313125095,1706778641718,-500.0,0.00028493,2]
[313125096,1706778641727,-500.0,0.00028493,2]
[313125097,1706778641736,-748.96,0.00028493,2]
[313125098,1706778641746,-1740.65,0.00028493,2]
[313125099,1706778641756,-500.0,0.00028493,2]
[313125100,1706778641765,-500.0,0.00028493,2]
[313125101,1706778641775,-500.0,0.00028493,2]
[313125102,1706778641784,-500.0,0.00028493,2]
[313125103,1706778641794,-500.0,0.00028493,2]
[313125104,1706778641803,-500.0,0.00028493,2]
[313125105,1706778641812,-500.0,0.00028493,2]
[313125106,1706778641822,-500.0,0.00028493,2]
[313125107,1706778641831,-965.96,0.00028493,2]
[313125108,1706778641840,-595.36,0.00028493,2]
[313125109,1706778641849,-562.27,0.00028493,2]
[313125110,1706778641858,-500.0,0.00028493,2]
[313125111,1706778641867,-752.71,0.00028493,2]
[313125112,1706778641876,-500.0,0.00028493,2]
[313125113,1706778641886,-500.0,0.00028493,2]
[313125114,1706778641895,-1110.9,0.00028493,2]
[313125115,1706778641904,-500.0,0.00028493,2]
[313125116,1706778641914,-500.0,0.00028493,2]
[313125117,1706778641922,-626.26224896,0.00028493,2]
[313125118,1706778641931,-701.69,0.00028493,2]
[313125119,1706778641941,-500.0,0.00028493,2]
[313125120,1706778641950,-500.0,0.00028493,2]
[313125121,1706778641959,-500.0,0.00028493,2]
[313125122,1706778641968,-789.27,0.00028493,2]
[313125123,1706778641979,-500.0,0.00028493,2]
[313125124,1706778641988,-500.0,0.00028493,2]
[313125125,1706778641999,-948.54,0.00028493,2]
[313125126,1706778642008,-1122.8,0.00028493,2]
[313125127,1706778642017,-505.98,0.00028493,2]
[313125128,1706778642027,-365.35,0.00028493,2]
[313125129,1706778642036,-500.0,0.00028493,2]
[313125130,1706778642046,-500.0,0.00028493,2]
[313125131,1706778642055,-500.0,0.00028493,2]
[313125132,1706778642064,-500.0,0.00028493,2]
[313125133,1706778642073,-705.17,0.00028493,2]
[313125134,1706778642082,-500.0,0.00028493,2]
[313125135,1706778642091,-1466.89,0.00028493,2]
[313125136,1706778642100,-500.0,0.00028493,2]
[313125137,1706778642109,-500.0,0.00028493,2]
[313125138,1706778642118,-500.0,0.00028493,2]
[313125139,1706778642127,-500.0,0.00028493,2]
[313125140,1706778642136,-500.0,0.00028493,2]
[313125141,1706778642144,-500.0,0.00028493,2]
[313125142,1706778642153,-500.0,0.00028493,2]
[313125143,1706778642161,-500.0,0.00028493,2]
[313125144,1706778642170,-1066.44,0.00028493,2]
[313125145,1706778642179,-500.0,0.00028493,2]
[313125146,1706778642188,-842.3,0.00028493,2]
[313125147,1706778642197,-581.18639811,0.00028493,2]
[313125148,1706778642206,-500.0,0.00028493,2]
[313125149,1706778642215,-500.0,0.00028493,2]
[313125150,1706778642224,-500.0,0.00028493,2]
[313125151,1706778642233,-500.0,0.00028493,2]
[313125152,1706778642242,-500.0,0.00028493,2]
[313125153,1706778642254,-500.0,0.00028493,2]
[313125154,1706778642263,-500.0,0.00028493,2]
[313125155,1706778642272,-500.0,0.00028493,2]
[313125156,1706778642281,-548.67,0.00028493,2]
[313125157,1706778642291,-500.0,0.00028493,2]
[313125158,1706778642300,-500.0,0.00028493,2]
[313125159,1706778642309,-500.0,0.00028493,2]